[Event "Live Chess"]
[Site "Chess.com"]
[Date "2021.02.06"]
[Round "-"]
[White "kombat-khushi"]
[Black "namritahansrai"]
[Result "0-1"]
[CurrentPosition "4r3/pp3k2/3bq2p/1P3K1P/1Pp2nR1/2Pn4/8/8 w - -"]
[Timezone "UTC"]
[ECO "C47"]
[ECOUrl "https://www.chess.com/openings/Four-Knights-Game-Italian-Variation"]
[UTCDate "2021.02.06"]
[UTCTime "20:31:34"]
[WhiteElo "416"]
[BlackElo "737"]
[TimeControl "1200+10"]
[Termination "namritahansrai won by checkmate"]
[StartTime "20:31:34"]
[EndDate "2021.02.06"]
[EndTime "20:39:01"]
[Link "https://www.chess.com/live/game/6472989130"]

1. e4 {[%clk 0:20:07.9]} 1... e5 {[%clk 0:20:07.8]} 2. Nf3 {[%clk 0:20:12.9]} 2... Nc6 {[%clk 0:20:15.5]} 3. Nc3 {[%clk 0:20:19.4]} 3... Nf6 {[%clk 0:20:25.4]} 4. Bc4 {[%clk 0:20:24]} 4... d6 {[%clk 0:20:33.7]} 5. d3 {[%clk 0:20:29.4]} 5... Be6 {[%clk 0:20:41.9]} 6. Bg5 {[%clk 0:20:35.8]} 6... d5 {[%clk 0:20:50.2]} 7. Bb3 {[%clk 0:20:41.6]} 7... dxe4 {[%clk 0:20:59.1]} 8. dxe4 {[%clk 0:20:43.9]} 8... Bxb3 {[%clk 0:21:06.4]} 9. axb3 {[%clk 0:20:46.2]} 9... h6 {[%clk 0:21:13.8]} 10. Bh4 {[%clk 0:20:51.3]} 10... Qxd1+ {[%clk 0:21:20.8]} 11. Rxd1 {[%clk 0:20:54]} 11... g5 {[%clk 0:21:30.3]} 12. h3 {[%clk 0:20:52.4]} 12... gxh4 {[%clk 0:21:36.9]} 13. g3 {[%clk 0:20:56.9]} 13... hxg3 {[%clk 0:21:42.8]} 14. O-O {[%clk 0:20:59.9]} 14... Rg8 {[%clk 0:21:47.3]} 15. fxg3 {[%clk 0:21:07.8]} 15... Rxg3+ {[%clk 0:21:53.6]} 16. Kh2 {[%clk 0:21:12.9]} 16... Nh5 {[%clk 0:21:59.7]} 17. Ne2 {[%clk 0:21:10.3]} 17... Rg8 {[%clk 0:22:07.4]} 18. Ng3 {[%clk 0:21:11.9]} 18... Nxg3 {[%clk 0:22:16]} 19. Rg1 {[%clk 0:21:18.5]} 19... Ne2 {[%clk 0:22:23.3]} 20. Rxg8 {[%clk 0:21:21.7]} 20... f5 {[%clk 0:22:15.5]} 21. Nd2 {[%clk 0:21:26.1]} 21... fxe4 {[%clk 0:22:21.1]} 22. Nc4 {[%clk 0:21:33.4]} 22... Kf7 {[%clk 0:22:11.1]} 23. Rgg1 {[%clk 0:21:36.4]} 23... e3 {[%clk 0:22:07.2]} 24. Rh1 {[%clk 0:21:43.2]} 24... e4 {[%clk 0:22:11.2]} 25. Ne5+ {[%clk 0:21:49.2]} 25... Nxe5 {[%clk 0:22:19.7]} 26. b4 {[%clk 0:21:39.3]} 26... Nf4 {[%clk 0:22:28]} 27. b5 {[%clk 0:21:44.3]} 27... e2 {[%clk 0:22:36.8]} 28. Rde1 {[%clk 0:21:50.1]} 28... Bb4 {[%clk 0:22:45.9]} 29. c3 {[%clk 0:21:51.5]} 29... Nf3+ {[%clk 0:22:54.1]} 30. Kg3 {[%clk 0:21:54.2]} 30... Nxe1 {[%clk 0:23:03.3]} 31. h4 {[%clk 0:21:49.9]} 31... Bd6 {[%clk 0:23:10.3]} 32. h5 {[%clk 0:21:57.5]} 32... Nfd3+ {[%clk 0:23:16.5]} 33. Kg4 {[%clk 0:21:56]} 33... Rg8+ {[%clk 0:23:16]} 34. Kf5 {[%clk 0:22:01.3]} 34... Ng2 {[%clk 0:23:17.8]} 35. Rh2 {[%clk 0:22:04.1]} 35... Ngf4 {[%clk 0:23:23.4]} 36. Rh4 {[%clk 0:22:11.3]} 36... c5 {[%clk 0:23:21]} 37. Kxe4 {[%clk 0:22:15.2]} 37... c4 {[%clk 0:23:26.4]} 38. b4 {[%clk 0:22:18.3]} 38... Re8+ {[%clk 0:23:33.7]} 39. Kf5 {[%clk 0:22:18.5]} 39... e1=Q {[%clk 0:23:42.9]} 40. Rg4 {[%clk 0:22:24.7]} 40... Qe6# {[%clk 0:23:48.5]} 0-1

[Event "Live Chess"]
[Site "Chess.com"]
[Date "2021.02.06"]
[Round "-"]
[White "JazzFork"]
[Black "luckybananas"]
[Result "1-0"]
[CurrentPosition "8/6P1/5k1K/8/8/5P2/7P/8 w - -"]
[Timezone "UTC"]
[ECO "D31"]
[ECOUrl "https://www.chess.com/openings/Queens-Gambit-Declined-Queens-Knight-Variation-3...Bb4"]
[UTCDate "2021.02.06"]
[UTCTime "20:31:21"]
[WhiteElo "1638"]
[BlackElo "1051"]
[TimeControl "1200+10"]
[Termination "JazzFork won by resignation"]
[StartTime "20:31:21"]
[EndDate "2021.02.06"]
[EndTime "20:44:28"]
[Link "https://www.chess.com/live/game/6472989741"]

1. d4 {[%clk 0:20:01]} 1... d5 {[%clk 0:20:05.8]} 2. c4 {[%clk 0:20:08.5]} 2... e6 {[%clk 0:20:08.7]} 3. Nc3 {[%clk 0:20:15.8]} 3... Bb4 {[%clk 0:20:15.6]} 4. g3 {[%clk 0:20:12.5]} 4... Nc6 {[%clk 0:20:22.3]} 5. Bg2 {[%clk 0:20:14.1]} 5... Nf6 {[%clk 0:20:28.8]} 6. Bg5 {[%clk 0:20:19]} 6... dxc4 {[%clk 0:20:36.4]} 7. Qa4 {[%clk 0:19:50.3]} 7... Bd7 {[%clk 0:20:40]} 8. Qd1 {[%clk 0:18:26.9]} 8... h6 {[%clk 0:20:32.7]} 9. Bf4 {[%clk 0:18:11.6]} 9... O-O {[%clk 0:20:33.6]} 10. e4 {[%clk 0:18:01.9]} 10... Bxc3+ {[%clk 0:20:23.5]} 11. bxc3 {[%clk 0:18:06.5]} 11... g5 {[%clk 0:20:17.7]} 12. Be5 {[%clk 0:18:07.7]} 12... Nxe5 {[%clk 0:20:23.6]} 13. dxe5 {[%clk 0:18:14.4]} 13... Ne8 {[%clk 0:20:31.5]} 14. Ne2 {[%clk 0:18:16.1]} 14... f6 {[%clk 0:20:39.8]} 15. exf6 {[%clk 0:18:03.7]} 15... Nxf6 {[%clk 0:20:45.3]} 16. O-O {[%clk 0:18:09.8]} 16... Bc6 {[%clk 0:20:51]} 17. f3 {[%clk 0:17:29.3]} 17... Qxd1 {[%clk 0:20:56.2]} 18. Raxd1 {[%clk 0:17:35.4]} 18... Rad8 {[%clk 0:20:59.2]} 19. Nd4 {[%clk 0:17:34.1]} 19... Ba4 {[%clk 0:21:03.6]} 20. Rb1 {[%clk 0:17:26.7]} 20... Rfe8 {[%clk 0:21:04.3]} 21. Rxb7 {[%clk 0:17:22.7]} 21... c5 {[%clk 0:21:09.6]} 22. Rxa7 {[%clk 0:16:41.9]} 22... cxd4 {[%clk 0:21:16.5]} 23. Rxa4 {[%clk 0:16:47.8]} 23... dxc3 {[%clk 0:21:25.3]} 24. Rxc4 {[%clk 0:16:50.9]} 24... Rc8 {[%clk 0:21:31.6]} 25. Rxc8 {[%clk 0:16:39.6]} 25... Rxc8 {[%clk 0:21:39.6]} 26. Rc1 {[%clk 0:16:45.2]} 26... Nd7 {[%clk 0:21:47.7]} 27. Bh3 {[%clk 0:16:37.5]} 27... Kf7 {[%clk 0:21:55.1]} 28. Bf1 {[%clk 0:16:26.8]} 28... e5 {[%clk 0:21:48.8]} 29. Bh3 {[%clk 0:16:31.6]} 29... Ke7 {[%clk 0:21:52.6]} 30. Kf2 {[%clk 0:16:34.4]} 30... Rc4 {[%clk 0:22:00.3]} 31. Bxd7 {[%clk 0:16:32.7]} 31... Kxd7 {[%clk 0:22:08.1]} 32. Ke3 {[%clk 0:16:38.5]} 32... Kc6 {[%clk 0:22:12.9]} 33. Kd3 {[%clk 0:16:42.6]} 33... Kc5 {[%clk 0:22:21.3]} 34. Rxc3 {[%clk 0:16:50.5]} 34... Rxc3+ {[%clk 0:22:29.2]} 35. Kxc3 {[%clk 0:16:59.8]} 35... h5 {[%clk 0:22:33.8]} 36. a4 {[%clk 0:17:02.1]} 36... Kb6 {[%clk 0:22:42.3]} 37. Kc4 {[%clk 0:17:11.1]} 37... Ka5 {[%clk 0:22:51.5]} 38. Kd5 {[%clk 0:17:20]} 38... Kxa4 {[%clk 0:23:00.8]} 39. Kxe5 {[%clk 0:17:29.3]} 39... Kb4 {[%clk 0:23:10]} 40. Kf5 {[%clk 0:17:38.4]} 40... Kc4 {[%clk 0:23:19.7]} 41. Kxg5 {[%clk 0:17:47.5]} 41... Kd4 {[%clk 0:23:29.4]} 42. Kxh5 {[%clk 0:17:56.7]} 42... Ke5 {[%clk 0:23:39]} 43. g4 {[%clk 0:18:05.8]} 43... Kf4 {[%clk 0:23:47.4]} 44. g5 {[%clk 0:18:14.3]} 44... Ke5 {[%clk 0:23:56]} 45. g6 {[%clk 0:18:23.4]} 45... Kf6 {[%clk 0:24:05.7]} 46. e5+ {[%clk 0:18:30.9]} 46... Kg7 {[%clk 0:24:14.4]} 47. e6 {[%clk 0:18:39.7]} 47... Kf6 {[%clk 0:24:23.7]} 48. Kh6 {[%clk 0:18:48.1]} 48... Kxe6 {[%clk 0:24:32.7]} 49. g7 {[%clk 0:18:57.2]} 49... Kf6 {[%clk 0:24:41.8]} 1-0

[Event "Live Chess"]
[Site "Chess.com"]
[Date "2021.02.06"]
[Round "-"]
[White "CyberSpaceKing"]
[Black "Falcondragoon"]
[Result "0-1"]
[CurrentPosition "7k/p1p1B3/1pb5/2P4p/4r3/8/8/4K3 w - -"]
[Timezone "UTC"]
[ECO "C46"]
[ECOUrl "https://www.chess.com/openings/Four-Knights-Game"]
[UTCDate "2021.02.06"]
[UTCTime "20:31:32"]
[WhiteElo "1043"]
[BlackElo "1363"]
[TimeControl "1200+10"]
[Termination "Falcondragoon won by resignation"]
[StartTime "20:31:32"]
[EndDate "2021.02.06"]
[EndTime "20:46:42"]
[Link "https://www.chess.com/live/game/6472990539"]

1. e4 {[%clk 0:20:10]} 1... e5 {[%clk 0:20:08.5]} 2. Nf3 {[%clk 0:20:19.2]} 2... Nf6 {[%clk 0:20:16.2]} 3. Nc3 {[%clk 0:20:26.7]} 3... Nc6 {[%clk 0:20:19.2]} 4. Bc4 {[%clk 0:20:34.7]} 4... Nxe4 {[%clk 0:20:26]} 5. Nxe4 {[%clk 0:20:37.1]} 5... d5 {[%clk 0:20:34.5]} 6. Bxd5 {[%clk 0:20:34]} 6... Qxd5 {[%clk 0:20:40]} 7. Nc3 {[%clk 0:20:40.4]} 7... Qd8 {[%clk 0:20:48.6]} 8. O-O {[%clk 0:20:48.8]} 8... Bd6 {[%clk 0:20:52.7]} 9. d3 {[%clk 0:20:55.2]} 9... O-O {[%clk 0:21:01]} 10. h3 {[%clk 0:21:02.1]} 10... Bf5 {[%clk 0:20:35.1]} 11. Be3 {[%clk 0:20:59.3]} 11... Be7 {[%clk 0:19:45]} 12. Ne4 {[%clk 0:20:15.2]} 12... Re8 {[%clk 0:18:39.8]} 13. d4 {[%clk 0:19:55.9]} 13... Bxe4 {[%clk 0:18:39]} 14. Nxe5 {[%clk 0:19:48.8]} 14... Nxe5 {[%clk 0:18:41.6]} 15. dxe5 {[%clk 0:19:55.7]} 15... Bc6 {[%clk 0:18:40.9]} 16. Qg4 {[%clk 0:19:59.5]} 16... Kh8 {[%clk 0:18:33]} 17. Rad1 {[%clk 0:19:51.2]} 17... Qc8 {[%clk 0:18:26.3]} 18. Bd4 {[%clk 0:19:57.7]} 18... Qxg4 {[%clk 0:18:30.6]} 19. hxg4 {[%clk 0:20:03.7]} 19... Bd7 {[%clk 0:18:30.7]} 20. f3 {[%clk 0:19:56.4]} 20... Bh4 {[%clk 0:18:07.8]} 21. Be3 {[%clk 0:19:53]} 21... Bb5 {[%clk 0:18:10.9]} 22. Rfe1 {[%clk 0:18:47.5]} 22... Bxe1 {[%clk 0:18:15.4]} 23. Rxe1 {[%clk 0:18:56.6]} 23... Rxe5 {[%clk 0:18:18.4]} 24. f4 {[%clk 0:18:51.9]} 24... Re7 {[%clk 0:18:18]} 25. Bd2 {[%clk 0:18:44.6]} 25... Rxe1+ {[%clk 0:18:19.9]} 26. Bxe1 {[%clk 0:18:53.3]} 26... Re8 {[%clk 0:18:28.2]} 27. Bf2 {[%clk 0:18:59.3]} 27... b6 {[%clk 0:18:35]} 28. b3 {[%clk 0:19:07]} 28... Re2 {[%clk 0:18:36.2]} 29. c4 {[%clk 0:19:12.3]} 29... Bc6 {[%clk 0:18:42.4]} 30. Kf1 {[%clk 0:19:13.5]} 30... Rxa2 {[%clk 0:18:45.2]} 31. g3 {[%clk 0:19:09]} 31... Rb2 {[%clk 0:18:51]} 32. f5 {[%clk 0:19:02.5]} 32... Rxb3 {[%clk 0:18:56.6]} 33. g5 {[%clk 0:19:09.2]} 33... Rf3 {[%clk 0:18:53.2]} 34. g4 {[%clk 0:19:06.4]} 34... Rf4 {[%clk 0:18:57.3]} 35. f6 {[%clk 0:19:10.8]} 35... gxf6 {[%clk 0:19:04.6]} 36. gxf6 {[%clk 0:19:19.3]} 36... Rxf6 {[%clk 0:19:12.6]} 37. g5 {[%clk 0:19:27.6]} 37... Rg6 {[%clk 0:19:20.6]} 38. Be3 {[%clk 0:19:34]} 38... f6 {[%clk 0:19:28.8]} 39. gxf6 {[%clk 0:19:39.3]} 39... Rxf6+ {[%clk 0:19:37.2]} 40. Ke1 {[%clk 0:19:47.3]} 40... h5 {[%clk 0:19:38.7]} 41. Bg5 {[%clk 0:19:49]} 41... Rf5 {[%clk 0:19:43.6]} 42. Be7 {[%clk 0:19:50.8]} 42... Rf4 {[%clk 0:19:49.6]} 43. c5 {[%clk 0:19:48.2]} 43... Re4+ {[%clk 0:19:47.4]} 0-1

[Event "Live Chess"]
[Site "Chess.com"]
[Date "2021.02.06"]
[Round "-"]
[White "kingcon3"]
[Black "ak121"]
[Result "0-1"]
[CurrentPosition "8/5k1p/5P2/8/8/8/q7/3K3r w - -"]
[Timezone "UTC"]
[ECO "D35"]
[ECOUrl "https://www.chess.com/openings/Queens-Gambit-Declined-Harrwitz-Attack"]
[UTCDate "2021.02.06"]
[UTCTime "20:31:28"]
[WhiteElo "1051"]
[BlackElo "900"]
[TimeControl "1200+10"]
[Termination "ak121 won by checkmate"]
[StartTime "20:31:28"]
[EndDate "2021.02.06"]
[EndTime "20:39:19"]
[Link "https://www.chess.com/live/game/6472991121"]

1. d4 {[%clk 0:20:09.9]} 1... d5 {[%clk 0:20:05.3]} 2. c4 {[%clk 0:20:18.1]} 2... e6 {[%clk 0:20:11.8]} 3. Nc3 {[%clk 0:20:24.4]} 3... Nf6 {[%clk 0:20:19.3]} 4. Bf4 {[%clk 0:20:25.1]} 4... Bd6 {[%clk 0:20:15.9]} 5. g3 {[%clk 0:20:32]} 5... Bxf4 {[%clk 0:20:23.6]} 6. gxf4 {[%clk 0:20:40.7]} 6... Ne4 {[%clk 0:20:23.4]} 7. cxd5 {[%clk 0:20:38.6]} 7... Nxc3 {[%clk 0:20:28.3]} 8. bxc3 {[%clk 0:20:46.3]} 8... exd5 {[%clk 0:20:35.3]} 9. Bg2 {[%clk 0:20:53.5]} 9... O-O {[%clk 0:20:33.3]} 10. Nf3 {[%clk 0:20:58.8]} 10... b6 {[%clk 0:20:37.4]} 11. O-O {[%clk 0:21:06.6]} 11... Bb7 {[%clk 0:20:46.3]} 12. e3 {[%clk 0:21:07.3]} 12... Na6 {[%clk 0:20:49.6]} 13. Qb1 {[%clk 0:21:01.1]} 13... c5 {[%clk 0:20:53.7]} 14. Ng5 {[%clk 0:21:06.5]} 14... g6 {[%clk 0:20:48.3]} 15. dxc5 {[%clk 0:21:08]} 15... Nxc5 {[%clk 0:20:48.1]} 16. Rd1 {[%clk 0:21:10.8]} 16... f6 {[%clk 0:20:42.2]} 17. Nf3 {[%clk 0:20:59.1]} 17... Ne4 {[%clk 0:20:48.2]} 18. Nh4 {[%clk 0:20:57.5]} 18... Nxc3 {[%clk 0:20:50.2]} 19. Qd3 {[%clk 0:20:40.5]} 19... Nxd1 {[%clk 0:20:56.1]} 20. Rxd1 {[%clk 0:20:48.6]} 20... Re8 {[%clk 0:20:56.6]} 21. Bxd5+ {[%clk 0:20:50.7]} 21... Bxd5 {[%clk 0:21:03.7]} 22. Qxd5+ {[%clk 0:20:58.9]} 22... Qxd5 {[%clk 0:21:11.9]} 23. Rxd5 {[%clk 0:21:07.2]} 23... Rad8 {[%clk 0:21:19.3]} 24. Rxd8 {[%clk 0:21:14.4]} 24... Rxd8 {[%clk 0:21:27.8]} 25. f5 {[%clk 0:21:17.8]} 25... gxf5 {[%clk 0:21:35]} 26. Nxf5 {[%clk 0:21:26.3]} 26... Rd2 {[%clk 0:21:43.6]} 27. a3 {[%clk 0:21:29.7]} 27... Ra2 {[%clk 0:21:52.7]} 28. Ne7+ {[%clk 0:21:37.9]} 28... Kf7 {[%clk 0:22:00.7]} 29. Nc8 {[%clk 0:21:44.7]} 29... Rxa3 {[%clk 0:22:02.5]} 30. Kg2 {[%clk 0:21:50.9]} 30... b5 {[%clk 0:22:11.2]} 31. Kf3 {[%clk 0:21:58.3]} 31... b4 {[%clk 0:22:20]} 32. Nd6+ {[%clk 0:22:06.6]} 32... Kg6 {[%clk 0:22:27.4]} 33. Kf4 {[%clk 0:22:12.2]} 33... b3 {[%clk 0:22:35.6]} 34. Nc4 {[%clk 0:22:20.4]} 34... Ra2 {[%clk 0:22:40.1]} 35. Kg4 {[%clk 0:22:26]} 35... b2 {[%clk 0:22:48.7]} 36. Nxb2 {[%clk 0:22:29.3]} 36... Rxb2 {[%clk 0:22:57.4]} 37. f4 {[%clk 0:22:37.4]} 37... Rxh2 {[%clk 0:23:05.9]} 38. f5+ {[%clk 0:22:45.5]} 38... Kg7 {[%clk 0:23:14]} 39. e4 {[%clk 0:22:54.1]} 39... a5 {[%clk 0:23:20]} 40. Kf4 {[%clk 0:23:00.3]} 40... a4 {[%clk 0:23:28.9]} 41. e5 {[%clk 0:23:09.2]} 41... fxe5+ {[%clk 0:23:37.2]} 42. Kxe5 {[%clk 0:23:18.3]} 42... a3 {[%clk 0:23:46.2]} 43. f6+ {[%clk 0:23:27.3]} 43... Kf7 {[%clk 0:23:54.9]} 44. Kf5 {[%clk 0:23:36.1]} 44... a2 {[%clk 0:24:03.3]} 45. Ke5 {[%clk 0:23:43.3]} 45... a1=Q+ {[%clk 0:24:09.7]} 46. Kd6 {[%clk 0:23:52.2]} 46... Qa6+ {[%clk 0:24:16.4]} 47. Kd5 {[%clk 0:23:59.3]} 47... Rh5+ {[%clk 0:24:25.7]} 48. Ke4 {[%clk 0:24:07.6]} 48... Qa4+ {[%clk 0:24:35.2]} 49. Kd3 {[%clk 0:24:15.9]} 49... Rh3+ {[%clk 0:24:44.5]} 50. Ke2 {[%clk 0:24:23.9]} 50... Qa2+ {[%clk 0:24:53.9]} 51. Kd1 {[%clk 0:24:31.8]} 51... Rh1# {[%clk 0:25:03.2]} 0-1

[Event "Live Chess"]
[Site "Chess.com"]
[Date "2021.02.06"]
[Round "-"]
[White "RibhavV2018"]
[Black "chessaryaman"]
[Result "1-0"]
[CurrentPosition "3rk2r/p3Qppp/3P2qn/8/8/4p1P1/PP3P1P/R4RK1 b k -"]
[Timezone "UTC"]
[ECO "C25"]
[ECOUrl "https://www.chess.com/openings/Vienna-Game-Anderssen-Defense"]
[UTCDate "2021.02.06"]
[UTCTime "20:31:54"]
[WhiteElo "1232"]
[BlackElo "865"]
[TimeControl "1200+10"]
[Termination "RibhavV2018 won by checkmate"]
[StartTime "20:31:54"]
[EndDate "2021.02.06"]
[EndTime "20:35:59"]
[Link "https://www.chess.com/live/game/6472993299"]

1. e4 {[%clk 0:20:06.4]} 1... e5 {[%clk 0:20:09.3]} 2. Nc3 {[%clk 0:20:13.7]} 2... Bc5 {[%clk 0:20:17]} 3. Bc4 {[%clk 0:20:20]} 3... Qh4 {[%clk 0:20:24.9]} 4. g3 {[%clk 0:20:25.3]} 4... Qf6 {[%clk 0:20:31.8]} 5. Nf3 {[%clk 0:20:32.8]} 5... d6 {[%clk 0:20:36.3]} 6. O-O {[%clk 0:20:41]} 6... Bg4 {[%clk 0:20:41.8]} 7. Be2 {[%clk 0:20:35.6]} 7... Nh6 {[%clk 0:20:44]} 8. d3 {[%clk 0:20:39.5]} 8... Nc6 {[%clk 0:20:52.4]} 9. Bg5 {[%clk 0:20:47.6]} 9... Qg6 {[%clk 0:20:55.4]} 10. Nd5 {[%clk 0:20:50.6]} 10... Rc8 {[%clk 0:20:57.2]} 11. Be3 {[%clk 0:20:39]} 11... Bxe3 {[%clk 0:21:00.9]} 12. Nxe3 {[%clk 0:20:46.9]} 12... Bxf3 {[%clk 0:21:08.2]} 13. Bxf3 {[%clk 0:20:54.7]} 13... Nd4 {[%clk 0:21:16.1]} 14. c3 {[%clk 0:20:47.2]} 14... Nxf3+ {[%clk 0:21:22.5]} 15. Qxf3 {[%clk 0:20:57.1]} 15... c6 {[%clk 0:21:24.5]} 16. d4 {[%clk 0:21:05.4]} 16... exd4 {[%clk 0:21:32.6]} 17. cxd4 {[%clk 0:21:13.7]} 17... c5 {[%clk 0:21:41.5]} 18. e5 {[%clk 0:21:20.4]} 18... cxd4 {[%clk 0:21:48.3]} 19. Qxb7 {[%clk 0:21:06.8]} 19... Rd8 {[%clk 0:21:42.4]} 20. exd6 {[%clk 0:21:00]} 20... dxe3 {[%clk 0:21:49.5]} 21. Qe7# {[%clk 0:21:06]} 1-0

[Event "Live Chess"]
[Site "Chess.com"]
[Date "2021.02.06"]
[Round "-"]
[White "SubtleGalaxy99"]
[Black "vikrams76"]
[Result "1-0"]
[CurrentPosition "r2qkb1r/ppp2Qp1/2n3P1/3p2p1/3p4/2P4P/PP3P2/RN2K1NR b KQkq -"]
[Timezone "UTC"]
[ECO "C23"]
[ECOUrl "https://www.chess.com/openings/Bishops-Opening"]
[UTCDate "2021.02.06"]
[UTCTime "20:32:06"]
[WhiteElo "937"]
[BlackElo "807"]
[TimeControl "1200+10"]
[Termination "SubtleGalaxy99 won by checkmate"]
[StartTime "20:32:06"]
[EndDate "2021.02.06"]
[EndTime "20:33:53"]
[Link "https://www.chess.com/live/game/6472994589"]

1. e4 {[%clk 0:20:08.6]} 1... e5 {[%clk 0:20:08.4]} 2. Bc4 {[%clk 0:20:14]} 2... Nc6 {[%clk 0:20:16.5]} 3. Qf3 {[%clk 0:20:21.7]} 3... Nf6 {[%clk 0:20:24.7]} 4. c3 {[%clk 0:20:27.6]} 4... d6 {[%clk 0:20:33.6]} 5. h3 {[%clk 0:20:34.2]} 5... Be6 {[%clk 0:20:36.2]} 6. Bxe6 {[%clk 0:20:32.8]} 6... fxe6 {[%clk 0:20:44.5]} 7. g4 {[%clk 0:20:41.5]} 7... d5 {[%clk 0:20:45.4]} 8. exd5 {[%clk 0:20:49.6]} 8... exd5 {[%clk 0:20:53.3]} 9. g5 {[%clk 0:20:57.4]} 9... Ne4 {[%clk 0:20:58.3]} 10. g6 {[%clk 0:21:00.7]} 10... Ng5 {[%clk 0:21:06.4]} 11. Qf5 {[%clk 0:21:03]} 11... h6 {[%clk 0:21:13]} 12. d4 {[%clk 0:21:08.8]} 12... exd4 {[%clk 0:21:20.6]} 13. Bxg5 {[%clk 0:21:14.6]} 13... hxg5 {[%clk 0:21:27.2]} 14. Qf7# {[%clk 0:21:23]} 1-0

[Event "Live Chess"]
[Site "Chess.com"]
[Date "2021.02.06"]
[Round "-"]
[White "ChessbroSunguy"]
[Black "Rishika8"]
[Result "1-0"]
[CurrentPosition "r1bqk2r/1p1pbQp1/p1p4p/8/3N1R1N/1Pn5/P1P2PPP/R1B3K1 b kq -"]
[Timezone "UTC"]
[ECO "C47"]
[ECOUrl "https://www.chess.com/openings/Four-Knights-Game-Italian-Variation"]
[UTCDate "2021.02.06"]
[UTCTime "20:32:07"]
[WhiteElo "329"]
[BlackElo "643"]
[TimeControl "1200+10"]
[Termination "ChessbroSunguy won by checkmate"]
[StartTime "20:32:07"]
[EndDate "2021.02.06"]
[EndTime "20:35:49"]
[Link "https://www.chess.com/live/game/6472995155"]

1. e4 {[%clk 0:20:07.7]} 1... e5 {[%clk 0:20:09]} 2. Nf3 {[%clk 0:20:13.4]} 2... Nc6 {[%clk 0:20:16.5]} 3. Nc3 {[%clk 0:20:20.6]} 3... Nf6 {[%clk 0:20:25.2]} 4. Bc4 {[%clk 0:20:20.3]} 4... h6 {[%clk 0:20:34.1]} 5. O-O {[%clk 0:20:19.4]} 5... Bc5 {[%clk 0:20:41.8]} 6. d4 {[%clk 0:20:22.5]} 6... Bb4 {[%clk 0:20:44.6]} 7. Nb5 {[%clk 0:20:27.6]} 7... a6 {[%clk 0:20:42.8]} 8. dxe5 {[%clk 0:20:31.3]} 8... Nxe4 {[%clk 0:20:47.1]} 9. Nh4 {[%clk 0:20:18.6]} 9... Nxe5 {[%clk 0:20:49.4]} 10. Qh5 {[%clk 0:20:26.3]} 10... Nxc4 {[%clk 0:20:45.4]} 11. b3 {[%clk 0:20:30.5]} 11... Ncd6 {[%clk 0:20:42.8]} 12. Nd4 {[%clk 0:20:37.5]} 12... Nb5 {[%clk 0:20:42.6]} 13. Re1 {[%clk 0:20:33.4]} 13... Be7 {[%clk 0:20:34.5]} 14. Rxe4 {[%clk 0:20:41.1]} 14... Nc3 {[%clk 0:20:38.1]} 15. Rf4 {[%clk 0:20:42.2]} 15... c6 {[%clk 0:20:45.9]} 16. Qxf7# {[%clk 0:20:50.4]} 1-0